Cogmind - Beta 13 @@@ ROGUE MODE // 2024.04.12 @ 13:42:43 Player: mehbruh Result: Destroyed by O4-WT7(R) with Subdweller Machine Gun Performance ------------- Evolutions (0) 0 Regions Visited (3) 600 Robots Destroyed (20) 100 Value Destroyed (490) 490 Prototype IDs (4) 80 Alien Tech Used (0) 0 Bonus (0) 0 TOTAL SCORE: 1270 Bonus ------- None Cogmind --------- Core Integrity 0/250 Matter 155/300 Energy 123/125 System Corruption 3% Temperature Cool (0) Movement Treading (160) Location -10/Subcaves Parts ------- > --- POWER (1) -------- Light Ion Engine > --- PROPULSION (2) --- Light Treads Light Treads > --- UTILITY (2) ------ (None) > --- WEAPON (2) ------- Improved Assault Rifle Improved Assault Rifle > --- INVENTORY (5) ---- Light Treads Assault Rifle Subdweller Machine Gun Improved Assault Rifle Mining Claw Peak State ------------ > --- POWER ------------ Light Ion Engine > --- PROPULSION ------- Light Treads Light Treads > --- UTILITY ---------- Scrap Shield > --- WEAPON ----------- Improved Assault Rifle Improved Assault Rifle > --- INVENTORY -------- Light Treads Assault Rifle Subdweller Machine Gun Improved Assault Rifle Mining Claw [Rating: 13] Favorites ----------- Power Ion Engine Engine Ion Engine Propulsion Light Treads Treads Light Treads Utility Signal Interpreter Storage Large Storage Unit Processor Signal Interpreter Protection Scrap Shield Weapon Assault Rifle Energy Gun Medium Laser Energy Cannon Beam Cannon Ballistic Gun Assault Rifle Slashing Weapon Mining Claw Build | -11 -10 -10 -10 ------- Run | Yrd Mat Min Sub Slots Evolved . | . . . . Power . | . . . . Propulsion . | . . . . Utility . | . . . . Weapon . | . . . . Parts Attached 30 | 6 12 2 10 Power 4 | 1 . . 3 Engine 4 | 1 . . 3 Core . | . . . . Reactor . | . . . . Propulsion 9 | 2 3 1 3 Treads 9 | 2 3 1 3 Leg . | . . . . Wheel . | . . . . Hover . | . . . . Flight . | . . . . Utility 5 | 1 3 . 1 Device . | . . . . Storage 3 | 1 2 . . Processor 1 | . 1 . . Hackware . | . . . . Protection 1 | . . . 1 Artifact . | . . . . Weapon 12 | 2 6 1 3 Energy Gun 1 | 1 . . . Energy Cannon 1 | . 1 . . Ballistic Gun 9 | 1 4 1 3 Ballistic Cannon . | . . . . Launcher . | . . . . Special Weapon . | . . . . Impact Weapon . | . . . . Slashing Weapon 1 | . 1 . . Piercing Weapon . | . . . . Special Melee Weapon . | . . . . Unidentified Prototypes . | . . . . Parts Lost 3 | . . . 3 Power . | . . . . Propulsion 1 | . . . 1 Utility 1 | . . . 1 Weapon 1 | . . . 1 Highest Loss Streak 2 | . . . 2 To Critical Strikes . | . . . . Average Slot Usage (%) 97 | . 98 100 93 Engine 14 | . 14 14 14 Treads 28 | . 28 28 28 Storage 13 | . 14 14 8 Processor 12 | . 12 14 8 Energy Gun 2 | . 3 . . Energy Cannon 5 | . 7 . . Ballistic Gun 18 | . 14 28 28 Naked Turns . | . . . . Heaviest Build 32 | 14 30 29 32 Greatest Support 40 | 40 40 40 40 Greatest Overweight (x) . | . . . . Average Overweight (x) . | . . . . Largest Inventory Capacity 15 | 8 15 15 15 Average Capacity 13 | 7 13 15 11 Most Carried 15 | 3 15 13 15 Average Carried 9 | 2 9 12 10 Final Capacity 15 | 8 15 15 5 Final Carried 13 | 3 11 13 5 Class Distribution -------------------- 100% | Mutant Dominant Class ---------------- Mutant | -10/Materials Mutant | -10/Mines Mutant | -10/Subcaves Resources | -11 -10 -10 -10 ----------- Run | Yrd Mat Min Sub Matter Collected 671 | 232 228 19 192 Remotely . | . . . . Salvage Created 754 | . 555 . 199 Parts 46 | . 31 . 15 Haulers Intercepted 2 | . 2 . . Recyclers Shooed . | . . . . Parts Field Recycled . | . . . . Retrieved Matter . | . . . . Parts Self-Destructed 2 | . . . 2 Prevented . | . . . . Kills | -11 -10 -10 -10 ------- Run | Yrd Mat Min Sub Combat Hostiles Destroyed 13 | . 8 . 5 Guns 13 | . 8 . 5 Classes Destroyed 6 | . 5 . 1 Hauler 2 | . 2 . . Recycler 2 | . 2 . . Watcher 3 | . 3 . . Swarmer 3 | . 3 . . Grunt 5 | . 5 . . Subdweller 5 | . . . 5 Best Kill Streak 4 | . 4 . 2 Combat Bots Only 3 | . 3 . 2 Max Kills in Single Turn 1 | . 1 . 1 Gunslinging . | . . . . Exploded . | . . . . Melee . | . . . . Uniques/NPCs Destroyed . | . . . . Combat | -11 -10 -10 -10 -------- Run | Yrd Mat Min Sub Hostile Shots Fired 89 | . 37 . 52 Missed 9 | . 4 . 5 Damage Taken 1442 | . 402 . 1040 Core 250 | . 69 . 181 Absorbed by Shields . | . . . . Regen/Repaired (Parts) 183 | . 183 . . Core Remaining (%) 100 | 100 . . . Volleys Fired 65 | . 39 . 26 Largest 2 | . 2 . 2 Hottest 80 | . 80 . 53 Shots Fired 131 | . 78 . 53 Gun 119 | . 66 . 53 Cannon 12 | . 12 . . Launcher . | . . . . Special . | . . . . Kinetic 93 | . 40 . 53 Thermal 38 | . 38 . . Explosive . | . . . . Electromagnetic . | . . . . Robot Hit Streak 27 | . 9 . 27 Robot Miss Streak 2 | . 2 . 1 Penetration Max . | . . . . Secondary Targets 1 | . . . 1 Max Gunslinging Chain 1 | . . . 1 Shots Hit Robots 97 | . 49 . 48 Core Hits 34 | . 24 . 10 Critical Kills . | . . . . Critical Parts Destroyed . | . . . . Critical Strikes 1 | . 1 . . Burn 1 | . 1 . . Melee Attacks 13 | . 13 . . Impact . | . . . . Slashing 13 | . 13 . . Piercing . | . . . . Sneak Attacks . | . . . . Combat Hostiles . | . . . . Follow-up Attacks . | . . . . Damage Inflicted 1283 | . 686 . 597 Guns 1155 | . 558 . 597 Cannons 109 | . 109 . . Explosions . | . . . . Melee . | . . . . Ramming 19 | . 19 . . Kinetic 952 | . 355 . 597 Thermal 312 | . 312 . . Explosive . | . . . . Electromagnetic . | . . . . Impact . | . . . . Slashing . | . . . . Piercing . | . . . . Highest Corruption 3 | . 3 3 3 Average Corruption 2 | . 2 3 3 Corruption Purged . | . . . . Corruption Blocked . | . . . . Effects 32 | . 10 10 12 Message Errors 4 | . 1 2 1 Matter Fused 9 | . 1 1 7 Heat Flow Errors 2 | . 1 1 . Energy Discharges 4 | . 1 2 1 Data Loss (minor) 5 | . 1 4 . Data Loss (major) 5 | . 4 . 1 Misfires 3 | . 1 . 2 Overload Shots . | . . . . Overflow Damage . | . . . . Projectiles . | . . . . Explosions . | . . . . Melee . | . . . . Knockbacks . | . . . . Impact . | . . . . Kinetic . | . . . . Secondary . | . . . . Self-Inflicted Damage . | . . . . Shots . | . . . . Rammed 2 | . 2 . . Targets Rammed 2 | . 2 . . Kicked . | . . . . Crushed . | . . . . Highest Temperature 147 | . 147 106 . Average Temperature 37 | . 37 59 . Received Heat Transfer 306 | . 159 . 147 Siege Activations . | . . . . Robots Corrupted . | . . . . Combat Hostiles . | . . . . Parts Fried . | . . . . Impact Corruptions . | . . . . Robots Melted . | . . . . Combat Hostiles . | . . . . Parts Melted 5 | . 5 . . Heat Transferred 888 | . 888 . . Parts Sabotaged . | . . . . Parts Stolen . | . . . . Parts Stripped . | . . . . Power Chain Reactions . | . . . . Alert | -11 -10 -10 -10 ------- Run | Yrd Mat Min Sub Peak Influence 169 | . 169 . . Initial . | . . . . Average 27 | . 36 . . Maximum Alert Level . | . . . . Low Security (%) 100 | 100 100 100 . Level 1 . | . . . . Level 2 . | . . . . Level 3 . | . . . . Level 4 . | . . . . Level 5 . | . . . . High Security . | . . . . Max Security . | . . . . Squads Dispatched 1 | . 1 . . Investigation . | . . . . Extermination . | . . . . Reinforcement 1 | . 1 . . Assault . | . . . . Garrison . | . . . . Intercept . | . . . . Searches Triggered . | . . . . Construction Impeded . | . . . . Haulers Reinforced . | . . . . Active Scanning Responses . | . . . . Cargo Convoy Interrupts . | . . . . Stealth | -11 -10 -10 -10 --------- Run | Yrd Mat Min Sub Distress Signals 1 | . 1 . . Communications Jammed . | . . . . Distress Signals . | . . . . Times Spotted 27 | . 19 . 8 Peak Tracking Total 4 | . 4 . 3 Tactical Retreats 1 | . 1 . . Traps | -11 -10 -10 -10 ------- Run | Yrd Mat Min Sub Traps Triggered 3 | . 3 . . Indirectly . | . . . . Trap Hack Attempts . | . . . . Triggered . | . . . . Disarmed . | . . . . Reprogrammed . | . . . . Reused . | . . . . Traps Extracted . | . . . . Installed . | . . . . Triggered . | . . . . Machines | -11 -10 -10 -10 ---------- Run | Yrd Mat Min Sub Machines Disabled . | . . . . Max in Single Turn . | . . . . Machines Repaired . | . . . . Machines Dismantled . | . . . . Machines Sabotaged . | . . . . Overloaded Fab Kills . | . . . . Hacking | -11 -10 -10 -10 --------- Run | Yrd Mat Min Sub Machines Accessed 8 | . 8 . . Terminals 7 | . 7 . . Fabricators . | . . . . Repair Stations 1 | . 1 . . Recycling Units . | . . . . Scanalyzers . | . . . . Garrison Access . | . . . . Total Hacks 33 | . 33 . . Successful 19 | . 19 . . Failed 13 | . 13 . . Catastrophic . | . . . . Database Lockouts 1 | . 1 . . Manual 16 | . 16 . . Terminals 28 | . 28 . . Fabricators . | . . . . Repair Stations 5 | . 5 . . Recycling Units . | . . . . Scanalyzers . | . . . . Garrison Access . | . . . . Terminal Hacks 12 | . 12 . . Robot Analysis 1 | . 1 . . Prototype ID Bank 3 | . 3 . . Emergency Access Points 1 | . 1 . . Alert Level 1 | . 1 . . Locate Traps 3 | . 3 . . Disarm Traps 1 | . 1 . . Transport Status 2 | . 2 . . Fabricator Hacks . | . . . . Repair Station Hacks 4 | . 4 . . Scan Component 2 | . 2 . . Repair 2 | . 2 . . Recycling Unit Hacks . | . . . . Scanalyzer . | . . . . Garrison Access Hacks . | . . . . Unauthorized Hacks 3 | . 3 . . Terminals 3 | . 3 . . Botnet 3 | . 3 . . Fabricators . | . . . . Repair Stations . | . . . . Recycling Units . | . . . . Scanalyzers . | . . . . Garrison Access . | . . . . Data Cores Recovered . | . . . . Used . | . . . . Hacking Detections 8 | . 8 . . Full Trace Events . | . . . . Feedback Events . | . . . . Feedback Blocked . | . . . . Robot Schematics Acquired . | . . . . Robots Built . | . . . . Authchips . | . . . . Time . | . . . . Total Robot Build Rating . | . . . . Part Schematics Acquired . | . . . . Parts Built . | . . . . Authchips . | . . . . Time . | . . . . Total Part Build Rating . | . . . . Parts Repaired 2 | . 2 . . Time 52 | . 52 . . Parts Recycled . | . . . . Recycled Matter . | . . . . Retrieved Matter . | . . . . Retrieved Components . | . . . . Parts Scanalyzed . | . . . . Part Schematics Acquired . | . . . . Parts Damaged . | . . . . Bothacking | -11 -10 -10 -10 ------------ Run | Yrd Mat Min Sub Used RIF Installer . | . . . . Robots Hacked . | . . . . Non-combat . | . . . . Combat . | . . . . Robot Hacks Applied . | . . . . Relay Couplers Released . | . . . . Fabnet Peak Effective % . | . . . . Robots Rewired . | . . . . Allies Hacked . | . . . . Hacks Repelled . | . . . . Allies | -11 -10 -10 -10 -------- Run | Yrd Mat Min Sub Total Allies . | . . . . Largest Group . | . . . . Highest-Rated Group . | . . . . Highest-Rated Ally . | . . . . Total Orders . | . . . . Ally Attacks . | . . . . Total Damage . | . . . . Kills . | . . . . Allies Corrupted . | . . . . Allies Melted . | . . . . Intel | -11 -10 -10 -10 ------- Run | Yrd Mat Min Sub Robot Analysis Total 1 | . 1 . . Derelict Logs Recovered 2 | . . 1 1 Drone Launches . | . . . . Drone Recoveries . | . . . . Exploration | -11 -10 -10 -10 ------------- Run | Yrd Mat Min Sub Turns Passed 3142 | 70 2063 577 432 Spaces Moved 1714 | 40 1118 359 197 Core 4 | 4 . . . Treads 1710 | 36 1118 359 197 Legs . | . . . . Wheels . | . . . . Hover . | . . . . Flight . | . . . . Fastest Speed 50 | 50 160 160 160 Average Speed 159 | 149 160 160 160 Slowest Speed 160 | 160 160 160 160 Overloaded Moves . | . . . . Propulsion Burnouts . | . . . . Robots Hopped . | . . . . Cave-ins Triggered . | . . . . Exploration Rate (%) 49 | 5 98 77 18 Regions Visited 3 Branch Regions 2 Pre-discovered Areas . | . . . . Known Exits Taken 2 | . 1 1 . Unknown Exits Taken 1 | 1 . . . Scrap Searched 1 | . . 1 . Spaces Dug 2 | . 2 . . Terrain Destroyed 2 | . 2 . . Melee 2 | . 2 . . Projectile . | . . . . AOE . | . . . . Terrain Rammed . | . . . . Walls Destroyed . | . . . . Machines Disabled . | . . . . Actions | -11 -10 -10 -10 --------- Run | Yrd Mat Min Sub Total 1962 | 48 1287 361 266 Wait 100 | . 82 . 18 Move 1711 | 39 1117 358 197 Hop . | . . . . Pick Up 22 | 3 13 1 5 Fast Attach 9 | 6 3 . . Attach 6 | . 1 . 5 Detach . | . . . . Swap 15 | . 8 2 5 Drop 18 | . 9 . 9 Fire 65 | . 39 . 26 Melee 13 | . 13 . . Ram . | . . . . Kick . | . . . . Crush 2 | . 2 . . Escape Stasis . | . . . . Rewire . | . . . . Trap . | . . . . Miscellaneous 1 | . . . 1 Route ------- -11/Scrapyard -10/Materials (discovered 5 exits: *Mat x3 / *Min x2) -10/Mines (discovered 2 exits: *Exi / *Sub) -10/Subcaves (discovered 1 exit: [*Mat]) History --------- Turn | Location | Event 38 | -11/Scrapyard | Discovered new exit (range 16) 71 | -11/Scrapyard | Entered Materials 311 | -10/Materials | Discovered new exit (range 12) 314 | -10/Materials | Build established: Mutant 328 | -10/Materials | Identified exit to Materials 591 | -10/Materials | Discovered exit to Materials (range 14) 708 | -10/Materials | Central database locked down 801 | -10/Materials | Discovered new exit (range 7) 812 | -10/Materials | Identified exit to Mines 1236 | -10/Materials | Discovered exit to Mines (range 8) 1855 | -10/Materials | Repaired Assault Rifle 1882 | -10/Materials | Repaired Lgt. Treads 1995 | -10/Materials | Discovered exit to Materials (range 11) 2134 | -10/Materials | Entered Mines 2654 | -10/Mines | Deemed a non-threat by the Exiles lab entrance 2654 | -10/Mines | Discovered new exit (range 5) 2668 | -10/Mines | Identified exit to Exiles 2694 | -10/Mines | Discovered new exit (range 12) 2710 | -10/Mines | Identified exit to Subcaves 2711 | -10/Mines | Entered Subcaves 2899 | -10/Subcaves | Core integrity fell below 50% 3091 | -10/Subcaves | Discovered new exit (range 13) 3096 | -10/Subcaves | Learned Materials interactive machine intel 3139 | -10/Subcaves | Core integrity fell below 20% 3143 | -10/Subcaves | Destroyed by O4-WT7(R) with Subdweller Machine Gun Last Messages --------------- System corrupted: FCS attempts to trigger Imp. Assault Rifle. System corrupted: Imp. Assault Rifle misfires. System corrupted: Matter fused (-5). Acquired 21 matter. EXIT=FOUND System corrupted: FCS attempts to trigger Imp. Assault Rifle. System corrupted: Imp. Assault Rifle misfires. Acquired derelict log, extracted data. Data stored: Materials interactive machine intel. System corrupted: Matter fused (-5). 9T-F62(R): "ECOKILL!" Critical hit (Destroy). Sub. Machine Gun shoots sparks and powers down. Scrap Shield destroyed. DD-V2Z(R) destroyed. 9T-F62(R) affixes Scrap Shield Fragment to Scrap Shield. Map ----- +----------------------------------------------------+ | # ### ?????????????????????????????????? | | ## #?????????????????????????????????? | | #?????????????????????????????????? | | #?????????????????????????????????? | | ## # #?????????????????????????????????? | | #?##?## ## ??????????????????????????????????? | | ##?????# ###??????????????????????????????????? | | #??##### #??????????????????????????????????? | | ##?## #??????????????????????????????????? | | ### = #??????????????????????????????????? | | ## #####??????????????????????????????? | | ##?????????????????????????????? | | #?????????????????????????????? | | # ##?????????????????????????????? | | ## #??????????????????????????????? | | ?# ###??????????????????????????????? | | ?# ## #????????????????????????????????? | | ?# ## #????????????????????????????????? | | ## # ##????????????????????????????????? | | # ### #?????????????????????????????????? | | #?## #???????????????###???????????????? | | #?######??????????????# #???????????????? | | ### #????????????????# ###?????????????? | | ### ###????????????## # # #????????? | | #?# ############## ??????????? | | ### ## ## ## @## """ ???????????? | | ## # " "R%& """#?????????????? | | ?## R < ## #?????????????? | | ??## ### ## # """#??????????????????? | | ???##### ##?###########??????????????????? | | ???????###### ##???????????????????????????????? | | ????????????#####????????????????????????????????? | | ?????????????????????????????????????????????????? | | ?????????????????????????????????????????????????? | | ?????????????????????????????????????????????????? | | ?????????????????????????????????????????????????? | | ?????????????????????????????????????????????????? | | ?????????????????????????????????????????????????? | | ?????????????????????????????????????????????????? | | ?????????????????????????????????????????????????? | | ?????????????????????????????????????????????????? | | ?????????????????????????????????????????????????? | | ?????????????????????????????????????????????????? | | ?????????????????????????????????????????????????? | | ?????????????????????????????????????????????????? | | ?????????????????????????????????????????????????? | | | | | | | | | +----------------------------------------------------+ Best States ------------- Heat Dissipation 25 Energy Generation 15 Energy Capacity 250 Matter Stores 300 Matter Capacity 300 Sight Range 16 Terrain Scan Density 10 Armor Coverage 800 Evasion (%) 40 Recoil Reduction 2 Item Schematics ----------------- None Robot Schematics ------------------ None Fabricated ------------ Nothing Alien Tech Used ----------------- None Achievements -------------- None Challenges ------------ None Game ------ Seed CoolingGuidedCorpse Manual? 0 Play Time 00:18:26 Cumulative 37.0 hours Start 2024.04.12 @ 13:22:15 End 2024.04.12 @ 13:42:43 Sessions 1 Manual Loads 0 Difficulty Rogue Special Mode None Game No. 32 Rogue 32 Adventurer 0 Explorer 0 Win Type - Total 1 Types 1/0/0/0/0/0/0/0/0 Lore% 31 Gallery% 32 Achievement% 32 Wizard Run 0 Options --------- Layout 1 ASCII 0 Keyboard 0 Movement Arrows Keybinds 0 Fullscreen 1 Font 24/Smallcaps Map View 50x35 Zoom Use 0% Tactical HUD 0 Map Filters NONE Filters NONE Steam 1 RUN: 368bd07c-b2b6-444f-8f63-dd38848c07c3